bitfinex-derivatives/quotes_SOLF0:USTF0_20250310
["timestamp","ask_amount","ask_price","bid_price","bid_amount"]
[1741605719078,7.85877445,128.2,128.17,7.85334363]
[1741605719271,7.8001,128.19,128.17,0.05254363]
[1741605719472,19.75805034,128.2,128.13,2.0964]
[1741605719668,4.0137,128.19,128.13,9.8997]
[1741605719869,7.802,128.16,128.13,9.8997]
[1741605720371,7.8014,128.17,128.13,2.0964]
[1741605720577,4.0137,128.19,128.13,2.0964]
[1741605720780,0.05085121,128.16,128.14,0.05350431]
[1741605721979,7.8024,128.15,128.14,0.05350431]
[1741605722365,7.8045,128.12,128.1,2.1288]
[1741605723170,7.8048,128.11,128.1,2.1288]
[1741605723375,7.8048,128.11,128.09,0.05724538]
[1741605724376,0.055821,128.12,128.09,0.05724538]
[1741605724780,0.055821,128.12,128.1,7.8054]
[1741605725082,0.055821,128.12,128.09,0.05724538]
[1741605725482,7.860221,128.12,128.09,7.86284538]
[1741605725680,0.055821,128.12,128.09,0.05724538]
[1741605725988,0.055821,128.12,128.1,7.8051]
[1741605726188,0.055821,128.12,128.09,0.05724538]
[1741605726793,7.8054,128.1,128.09,0.05724538]
[1741605727182,7.8051,128.11,128.09,0.05724538]
[1741605727388,0.055821,128.12,128.09,0.05724538]
[1741605727787,2.0129,128.17,128.11,19.69887589]
[1741605727984,2.0129,128.17,128.13,19.69887589]
[1741605728387,2.0129,128.17,128.15,7.8021]
[1741605728997,2.06410556,128.17,128.15,7.86161167]
[1741605729296,2.06410556,128.17,128.15,0.05951167]
[1741605729898,9.86570556,128.17,128.15,0.05951167]
[1741605730193,2.06410556,128.17,128.15,0.05951167]
[1741605731892,9.86560556,128.17,128.15,0.05951167]
[1741605732292,2.06410556,128.17,128.15,0.05951167]
[1741605732885,2.06410556,128.17,128.15,7.86181167]
[1741605733599,2.06410556,128.17,128.16,7.8018]
[1741605733799,2.06410556,128.17,128.15,0.05951167]
[1741605734595,0.05120556,128.17,128.15,7.86151167]
[1741605736096,0.05120556,128.17,128.16,7.8018]
[1741605738103,1.9527,128.21,128.16,19.69887589]
[1741605738303,1.9527,128.21,128.19,7.7997]
[1741605738897,1.9583,128.25,128.18,19.69887589]
[1741605739096,23.66797589,128.25,128.16,21.70377589]
[1741605739406,7.7984,128.22,128.2,0.05497137]
[1741605740008,0.05144187,128.23,128.2,0.05497137]
[1741605740605,7.84894187,128.23,128.2,0.05497137]
[1741605740806,0.05144187,128.23,128.2,0.05497137]
[1741605741210,7.84924187,128.23,128.2,0.05497137]
[1741605742604,0.05144187,128.23,128.2,0.05497137]
[1741605742807,10.72940442,128.29,128.22,19.69887589]
[1741605743011,10.72940442,128.29,128.24,19.69887589]
[1741605743510,118.52101261,128.3,128.23,2.032]
[1741605743511,7.796,128.26,128.23,2.032]
[1741605744201,19.69887589,128.3,128.23,9.88378781]
[1741605744406,19.69887589,128.3,128.23,2.08688781]
[1741605744606,7.7941,128.29,128.23,2.08688781]
[1741605744807,43.4151816,128.31,128.23,2.032]
[1741605745008,43.4151816,128.31,128.25,0.05268366]
[1741605745205,43.4151816,128.31,128.26,7.7954]
[1741605745409,43.4151816,128.31,128.25,0.05268366]
[1741605745604,7.7957,128.26,128.25,0.05268366]
[1741605745809,19.69887589,128.29,128.18,100.33869744]
[1741605746012,19.69887589,128.27,128.18,102.38569744]
[1741605746201,7.7959,128.26,128.19,1.39885021]
[1741605746402,19.69887589,128.27,128.18,21.74587589]
[1741605746603,1.9816,128.25,128.18,21.74587589]
[1741605747002,0.05991493,128.23,128.21,7.7987]
[1741605747310,0.05991493,128.23,128.2,0.0527199]
[1741605748008,7.7987,128.21,128.2,0.0527199]
[1741605750114,7.7984,128.22,128.2,0.0527199]
[1741605750512,0.05991493,128.23,128.2,0.0527199]
[1741605750816,7.7981,128.22,128.2,0.0527199]
[1741605751220,0.05991493,128.23,128.2,0.0527199]
[1741605751609,7.7981,128.22,128.2,0.0527199]
[1741605751915,0.05991493,128.23,128.2,0.0527199]
[1741605752116,7.85761493,128.23,128.2,0.0527199]
[1741605752316,7.85761493,128.23,128.2,7.8517199]
[1741605752518,0.05991493,128.23,128.2,0.0527199]
[1741605753013,0.05991493,128.23,128.21,7.7984]
[1741605753218,0.05991493,128.23,128.2,0.0527199]
[1741605753418,0.05991493,128.23,128.2,2.1284199]
[1741605753618,0.05991493,128.23,128.22,7.7981]
[1741605755514,47.5933816,128.31,128.21,19.69887589]
[1741605755718,47.5933816,128.31,128.23,19.69887589]
[1741605755914,7.7955,128.27,128.23,19.69887589]
[1741605756113,7.7955,128.27,128.24,7.7969]
[1741605756316,7.7955,128.27,128.23,19.69887589]
[1741605756615,7.7955,128.27,128.24,0.05216268]
[1741605757118,7.7955,128.27,128.24,7.84886268]
[1741605757320,7.7957,128.26,128.24,0.05216268]
[1741605757712,23.87707589,128.31,128.24,0.05216268]
[1741605757917,19.69887589,128.29,128.24,0.05216268]
[1741605758219,7.7961,128.26,128.24,0.05216268]
[1741605758821,7.7953,128.27,128.24,0.05216268]
[1741605759017,19.69887589,128.29,128.24,0.05216268]
[1741605759521,7.7963,128.25,128.24,0.05216268]
[1741605760925,7.7987,128.21,128.17,19.69887589]
[1741605761424,1.9348,128.24,128.17,19.69887589]
[1741605761817,7.7978,128.23,128.21,7.7986]
[1741605762018,0.05139374,128.22,128.19,0.05404156]
[1741605763011,7.7993,128.2,128.19,0.05404156]
[1741605763216,0.05139374,128.22,128.19,0.05404156]
[1741605764119,7.799,128.21,128.19,0.05404156]
[1741605765623,7.84979374,128.22,128.19,7.85394156]
[1741605766225,0.05139374,128.22,128.2,7.799]
[1741605766421,0.05139374,128.22,128.21,19.69887589]
[1741605766931,0.05139374,128.22,128.21,27.49757589]
[1741605769533,0.05139374,128.22,128.21,19.69887589]
[1741605769731,0.05139374,128.22,128.2,7.799]
[1741605769932,0.05139374,128.22,128.19,19.75291745]
[1741605770231,0.05139374,128.22,128.2,7.7989]
[1741605770631,0.05139374,128.22,128.21,7.7987]
[1741605770835,0.05139374,128.22,128.19,19.75291745]
[1741605771334,0.05139374,128.22,128.21,7.7987]
[1741605771530,0.05139374,128.22,128.19,19.75291745]
[1741605772632,0.05139374,128.22,128.21,27.49757589]
[1741605772832,0.05139374,128.22,128.19,19.75291745]
[1741605773230,0.05139374,128.22,128.19,0.05404156]
[1741605774034,7.7993,128.2,128.19,0.05404156]
[1741605774428,0.05139374,128.22,128.19,0.05404156]
[1741605774636,7.7992,128.21,128.19,0.05404156]
[1741605774834,0.05139374,128.22,128.19,0.05404156]
[1741605776337,7.7993,128.2,128.19,0.05404156]
[1741605777233,0.05139374,128.22,128.19,0.05404156]
[1741605777438,0.05139374,128.22,128.19,19.75291745]
[1741605777636,0.05139374,128.22,128.2,7.7993]
[1741605777937,7.84979374,128.22,128.19,0.05404156]
[1741605778338,7.7992,128.21,128.19,0.05404156]
[1741605778832,0.05139374,128.22,128.19,0.05404156]
[1741605779035,7.84979374,128.22,128.19,7.85364156]
[1741605779239,0.05139374,128.22,128.19,7.85364156]
[1741605779441,7.7993,128.2,128.19,0.05404156]
[1741605785642,7.8021,128.16,128.13,27.50207589]
[1741605786033,7.8021,128.16,128.13,19.69887589]
[1741605786233,7.8021,128.16,128.14,7.8029]
[1741605786446,7.8021,128.16,128.13,19.69887589]
[1741605786641,7.8021,128.16,128.14,7.8029]
[1741605786841,7.85170156,128.16,128.14,7.8029]
[1741605787949,7.85170156,128.16,128.13,19.75883696]
[1741605788143,7.8026,128.15,128.13,0.05996107]
[1741605788543,7.8026,128.15,128.13,62.05996107]
[1741605788744,7.8026,128.15,128.13,69.86356107]
[1741605789638,0.04960156,128.16,128.13,62.05996107]
[1741605789948,7.803,128.14,128.13,0.05996107]
[1741605790447,7.8048,128.11,128.09,7.8057]
[1741605790648,19.69887589,128.16,128.07,25.87657589]
[1741605790846,19.69887589,128.16,128.09,7.806]
[1741605791150,19.69887589,128.16,128.07,25.87657589]
[1741605791338,20.42497589,128.18,128.07,25.87657589]
[1741605791537,0.04985082,128.14,128.07,25.87657589]
[1741605791741,0.04985082,128.14,128.11,19.75452492]
[1741605791938,0.04985082,128.14,128.13,7.8036]
[1741605792142,0.04985082,128.14,128.13,27.50247589]
[1741605792342,0.04985082,128.14,128.12,7.8037]
[1741605792550,0.04985082,128.14,128.11,19.75452492]
[1741605792752,0.04985082,128.14,128.12,62.0]
[1741605793450,0.04985082,128.14,128.13,7.8036]
[1741605793751,0.04985082,128.14,128.12,62.0]
[1741605793950,0.04985082,128.14,128.12,7.8039]
[1741605794343,0.04985082,128.14,128.13,7.8036]
[1741605794544,0.04985082,128.14,128.11,19.75452492]
[1741605795047,0.04985082,128.14,128.13,7.8036]
[1741605796950,0.04985082,128.14,128.13,69.8036]
[1741605797552,0.04985082,128.14,128.12,9.7409]
[1741605798146,0.04985082,128.14,128.12,7.8041]
[1741605798354,0.04985082,128.14,128.11,0.05564903]
[1741605798549,0.04985082,128.14,128.13,7.8036]
[1741605800146,0.04985082,128.14,128.12,7.8039]
[1741605800347,0.04985082,128.14,128.11,0.05564903]
[1741605800543,0.04985082,128.14,128.11,81.75452492]
[1741605800951,0.04985082,128.14,128.13,7.8036]
[1741605803354,0.04985082,128.14,128.13,27.50247589]
[1741605805662,0.04985082,128.14,128.13,7.8036]
[1741605806165,0.04985082,128.14,128.12,7.8039]
[1741605806360,0.04985082,128.14,128.11,81.75452492]
[1741605806658,0.04985082,128.14,128.12,7.8039]
[1741605806957,7.85285082,128.14,128.12,7.8039]
[1741605807152,0.04985082,128.14,128.11,81.75452492]
[1741605807754,0.04985082,128.14,128.11,7.86004903]
[1741605807957,7.8039,128.13,128.11,7.86004903]
[1741605808455,0.04985082,128.14,128.11,0.05564903]
[1741605808858,0.04985082,128.14,128.13,7.8036]
[1741605809261,0.04985082,128.14,128.11,0.05564903]
[1741605810160,7.8039,128.13,128.11,0.05564903]
[1741605810361,0.04985082,128.14,128.11,0.05564903]
[1741605810663,0.04985082,128.14,128.11,19.75452492]
[1741605810852,0.04985082,128.14,128.13,7.8036]
[1741605816463,0.04985082,128.14,128.12,7.8039]
[1741605816965,0.04985082,128.14,128.11,81.75452492]
[1741605817165,0.04985082,128.14,128.13,7.8036]
[1741605817362,0.04985082,128.14,128.13,27.50247589]
[1741605819363,0.04985082,128.14,128.13,7.8036]
[1741605824664,43.4151816,128.23,128.18,7.8005]
[1741605824867,43.4151816,128.23,128.11,97.36392492]
[1741605824868,7.7998,128.2,128.15,19.69887589]
[1741605825170,7.7998,128.2,128.17,7.8009]
[1741605825561,7.7998,128.2,128.15,19.69887589]
[1741605825762,0.05726703,128.2,128.18,7.8002]
[1741605825973,0.05726703,128.2,128.17,0.05431466]
[1741605826482,0.05726703,128.2,128.18,7.8002]
[1741605828171,7.85666703,128.2,128.18,7.8002]
[1741605828471,7.85666703,128.2,128.17,7.85511466]
[1741605829773,7.85666703,128.2,128.17,0.05431466]
[1741605830073,7.8,128.19,128.17,0.05431466]
[1741605830476,0.05726703,128.2,128.17,0.05431466]
[1741605830668,7.8005,128.18,128.17,0.05431466]
[1741605830869,0.05726703,128.2,128.17,0.05431466]
[1741605831175,7.8003,128.19,128.17,0.05431466]
[1741605831673,7.85686703,128.2,128.17,7.85531466]
[1741605834679,0.05726703,128.2,128.19,7.7999]
[1741605836870,0.05726703,128.2,128.18,19.70551911]
[1741605836871,0.05726703,128.2,128.18,27.50581911]
[1741605837070,0.05726703,128.2,128.17,0.05431466]
[1741605837776,7.85706703,128.2,128.17,0.05431466]
[1741605838171,7.8,128.19,128.17,0.05431466]
[1741605838677,0.05726703,128.2,128.17,0.05431466]
[1741605838881,7.8005,128.19,128.17,0.05431466]
[1741605839476,0.05726703,128.2,128.17,0.05431466]
[1741605840076,0.05726703,128.2,128.17,7.85511466]
[1741605840279,7.85676703,128.2,128.17,7.85511466]
[1741605840474,0.05726703,128.2,128.17,0.05431466]
[1741605840865,7.8005,128.18,128.17,0.05431466]
[1741605842683,7.8027,128.15,128.11,81.70551911]
[1741605842980,7.8027,128.15,128.12,7.8039]
[1741605843880,7.85502736,128.15,128.12,7.86102516]
[1741605845173,0.05232736,128.15,128.13,7.8035]
[1741605845574,0.05232736,128.15,128.12,0.05712516]
[1741605845785,0.05232736,128.15,128.13,19.70551911]
[1741605846474,0.05232736,128.15,128.13,7.8034]
[1741605846872,0.05232736,128.15,128.14,7.803]
[1741605848388,0.05232736,128.15,128.14,20.4198158]
[1741605849880,11.8994,128.21,128.14,12.6168158]
[1741605850079,11.8994,128.21,128.18,12.6168158]
[1741605850487,7.7997,128.2,128.18,12.6168158]
[1741605850989,7.7997,128.2,128.18,12.67623223]
[1741605850990,7.85224069,128.2,128.18,12.67623223]
[1741605851285,0.05254069,128.2,128.18,12.67623223]
[1741605851488,0.05254069,128.2,128.19,7.7999]
[1741605852279,0.05254069,128.2,128.19,9.7752]
[1741605854280,81.27561741,128.26,128.23,7.7972]
[1741605854683,81.27561741,128.26,128.22,7.7978]
[1741605854684,73.47961741,128.26,128.22,7.7978]
[1741605854980,73.47961741,128.26,128.19,21.66619959]
[1741605855182,1.9849,128.27,128.21,7.7983]
[1741605855382,0.05065101,128.24,128.21,0.06012108]
[1741605855792,7.7979,128.23,128.21,0.06012108]
[1741605855993,0.05065101,128.24,128.21,0.06012108]
[1741605857993,0.05065101,128.24,128.21,69.85852108]
[1741605858191,0.05065101,128.24,128.21,62.06012108]
[1741605859092,7.7978,128.23,128.21,62.06012108]
[1741605859293,0.05065101,128.24,128.21,0.06012108]
[1741605859793,7.7978,128.23,128.21,0.06012108]
[1741605860892,7.84785101,128.24,128.21,7.85872108]
[1741605861192,0.05065101,128.24,128.21,0.06012108]
[1741605861586,0.05065101,128.24,128.23,7.7975]
[1741605863094,0.05065101,128.24,128.21,62.06012108]
[1741605863794,7.84785101,128.24,128.21,69.85852108]
[1741605863996,0.05065101,128.24,128.21,62.06012108]
[1741605864189,7.798,128.23,128.21,0.06012108]
[1741605865093,7.7981,128.22,128.21,0.06012108]
[1741605865688,7.7977,128.23,128.21,0.06012108]
[1741605865891,0.05065101,128.24,128.21,0.06012108]
[1741605866092,0.05065101,128.24,128.22,7.7979]
[1741605866701,7.84755101,128.24,128.22,7.7979]
[1741605866888,0.05065101,128.24,128.22,7.7979]
[1741605867085,0.05065101,128.24,128.23,7.7975]
[1741605867389,0.05065101,128.24,128.22,62.0]
[1741605867390,7.7928,128.31,128.22,39.38179918]
[1741605867695,122.59921261,128.33,128.26,19.69089959]
[1741605867887,10.72940442,128.31,128.26,19.69089959]
[1741605868092,10.72940442,128.31,128.24,21.66489959]
[1741605868497,7.7948,128.28,128.26,0.05255059]
[1741605868692,10.72940442,128.31,128.26,0.05255059]
[1741605868999,7.7951,128.27,128.26,0.05255059]
[1741605873298,0.7268,128.31,128.26,0.05255059]
[1741605873299,19.69089959,128.32,128.26,0.05255059]
[1741605873501,4.0782,128.33,128.26,19.74345018]
[1741605874189,4.0782,128.33,128.26,0.05255059]
[1741605874393,2.1084,128.33,128.26,0.05255059]
[1741605874593,1.9978,128.32,128.26,0.05255059]
[1741605875300,7.7943,128.29,128.26,7.84785059]
[1741605876102,1.9978,128.32,128.26,19.74345018]
[1741605876599,1.9978,128.32,128.26,0.05255059]
[1741605876600,21.68869959,128.32,128.26,0.05255059]
[1741605877103,7.7947,128.28,128.26,0.05255059]
[1741605877605,1.9978,128.32,128.26,0.05255059]
[1741605878191,7.7944,128.29,128.26,12.64785387]
[1741605878502,14.59310328,128.32,128.26,12.64785387]
[1741605879291,14.59310328,128.32,128.28,12.59530328]
[1741605879698,7.7939,128.29,128.28,12.59530328]
[1741605881005,7.7945,128.28,128.27,0.05017707]
[1741605881308,14.59310328,128.32,128.27,0.05017707]
[1741605881503,7.7942,128.29,128.27,0.05017707]
[1741605882002,1.9978,128.32,128.28,12.59530328]
[1741605882203,7.7937,128.3,128.28,12.59530328]
[1741605883703,7.7928,128.31,128.28,20.38970328]
[1741605884804,7.7928,128.31,128.28,12.59530328]
[1741605885104,7.7933,128.3,128.28,12.59530328]
[1741605885703,14.60440328,128.36,128.28,12.59530328]
[1741605886010,14.60440328,128.36,128.31,12.59530328]
[1741605886304,14.60440328,128.36,128.31,12.65514171]
[1741605886599,7.792,128.32,128.31,12.65514171]
[1741605886807,20.38730328,128.32,128.31,0.05983843]
[1741605891096,7.792,128.32,128.31,0.05983843]
[1741605893701,7.7913,128.34,128.31,12.65514171]
[1741605893902,43.4151816,128.37,128.33,12.59530328]
[1741605894108,43.4151816,128.37,128.35,12.59530328]
[1741605894307,12.59530328,128.36,128.23,192.0]
[1741605894515,12.59530328,128.34,128.27,12.59530328]
[1741605894708,12.59530328,128.34,128.29,12.59530328]
[1741605894907,12.59530328,128.36,128.29,12.59530328]
[1741605895408,2.029,128.37,128.31,12.59530328]
[1741605895599,0.0574348,128.34,128.31,12.64522297]
[1741605895806,0.0574348,128.34,128.31,0.04991969]
[1741605895807,7.7918,128.33,128.31,0.04991969]
[1741605896307,20.38730328,128.32,128.31,0.04991969]
[1741605896512,12.59530328,128.32,128.26,1.9699]
[1741605896807,12.59530328,128.32,128.26,63.9699]
[1741605897013,7.7942,128.29,128.26,1.9699]
[1741605897614,7.7942,128.29,128.26,0.05561342]
[1741605897615,7.84764637,128.29,128.26,0.05561342]
[1741605898007,7.7946,128.28,128.26,0.05561342]
[1741605898702,7.7951,128.27,128.26,0.05561342]
[1741605899507,0.05354637,128.29,128.26,0.05561342]
[1741605900511,0.05354637,128.29,128.26,19.74176033]
[1741605900820,0.05354637,128.29,128.27,2.0389]
[1741605901218,0.05354637,128.29,128.28,7.7945]
[1741605901413,0.05354637,128.29,128.27,2.0389]
[1741605901619,0.05354637,128.29,128.28,7.7945]
[1741605903318,0.05354637,128.29,128.28,69.7945]
[1741605903614,2.0163,128.33,128.28,69.7945]
[1741605903615,1.9643,128.35,128.28,81.68614691]
[1741605904021,7.7922,128.32,128.28,81.68614691]
[1741605904220,1.9643,128.35,128.27,3.97]
[1741605904221,1.9643,128.35,128.27,2.0389]
[1741605904807,0.05058978,128.32,128.3,0.04943649]
[1741605905822,7.7926,128.31,128.3,0.04943649]
[1741605906619,19.68614691,128.31,128.21,19.68614691]
[1741605906823,1.9646,128.3,128.21,21.65364691]
[1741605907028,7.7955,128.27,128.23,7.7971]
[1741605907320,1.9646,128.3,128.21,21.65364691]
[1741605907719,0.0546269,128.27,128.24,0.05382212]
[1741605908118,7.7963,128.25,128.24,0.05382212]
[1741605908525,19.74077381,128.27,128.18,103.95021968]
[1741605908823,19.68614691,128.27,128.18,103.95021968]
[1741605909220,19.68614691,128.27,128.19,7.7997]
[1741605909425,19.68614691,128.27,128.18,103.95021968]
[1741605909622,19.68614691,128.27,128.18,1.9675]
[1741605909818,7.7982,128.22,128.21,0.05691949]
[1741605910326,7.85281342,128.24,128.21,7.85561949]
[1741605910518,0.05561342,128.24,128.21,0.05691949]
[1741605912225,2.06861342,128.24,128.21,0.05691949]
[1741605912729,2.06861342,128.24,128.15,21.79814691]
[1741605912923,19.68614691,128.23,128.13,19.68614691]
[1741605913120,19.68614691,128.21,128.12,2.1054]
[1741605913321,7.8011,128.18,128.14,7.8028]
[1741605913533,7.8011,128.18,128.12,2.1054]
[1741605913831,19.68614691,128.21,128.12,2.1054]
[1741605914031,0.05124439,128.16,128.14,0.05619477]
[1741605914326,7.8003,128.19,128.16,7.8016]
[1741605914731,7.85660516,128.19,128.16,7.85243552]
[1741605915026,0.05630516,128.19,128.16,0.05083552]
[1741605915233,0.05630516,128.19,128.17,7.8011]
[1741605915623,0.05630516,128.19,128.17,7.8007]
[1741605915837,0.05630516,128.19,128.16,0.05083552]
[1741605916329,0.05630516,128.19,128.17,7.8006]
[1741605917134,0.05630516,128.19,128.16,0.05083552]
[1741605917327,0.05630516,128.19,128.18,7.8005]
[1741605918033,0.05630516,128.19,128.17,7.8008]
[1741605918434,0.05630516,128.19,128.17,69.8008]
[1741605918728,0.05630516,128.19,128.18,7.8005]
[1741605920443,5.16e-06,128.19,128.18,9.8228]
[1741605920636,2.013,128.24,128.18,2.0223]
[1741605920838,2.013,128.24,128.19,19.68614691]
[1741605921237,2.013,128.24,128.18,2.0223]
[1741605921824,2.013,128.24,128.2,0.05055081]
[1741605921825,7.7988,128.21,128.2,0.05055081]
[1741605922234,7.85496549,128.22,128.2,0.05055081]
[1741605922734,7.85486549,128.22,128.2,0.05055081]
[1741605923131,0.05656549,128.22,128.2,0.05055081]
[1741605923333,0.05656549,128.22,128.2,7.84935081]
[1741605923536,0.05656549,128.22,128.2,0.05055081]
[1741605924028,7.7987,128.21,128.2,0.05055081]
[1741605924940,7.8009,128.18,128.14,21.78974691]
[1741605925129,19.68614691,128.22,128.14,21.78974691]
[1741605925326,7.8002,128.19,128.16,7.8014]
[1741605925535,19.68614691,128.22,128.14,19.68614691]
[1741605925733,2.0515,128.21,128.14,19.68614691]
[1741605925941,7.801,128.18,128.16,0.0515844]
[1741605926531,0.04913486,128.19,128.16,7.8529844]
[1741605927241,0.04913486,128.19,128.17,7.801]
[1741605927432,0.04913486,128.19,128.16,62.0515844]
[1741605928134,7.8011,128.18,128.16,62.0515844]
[1741605928939,0.04913486,128.19,128.16,62.0515844]
[1741605929141,7.801,128.18,128.16,62.0515844]
[1741605929638,7.8012,128.17,128.16,0.0515844]
[1741605931044,7.8012,128.17,128.16,8.44e-05]
[1741605931239,7.8036,128.13,128.12,2.1365]
[1741605931630,21.68094691,128.18,128.07,1.35807528]
[1741605931631,19.68614691,128.16,128.07,1.35807528]
[1741605931843,19.68614691,128.16,128.09,7.8057]
[1741605932143,19.68614691,128.16,128.08,1.9306]
[1741605932344,7.8039,128.13,128.11,0.04928485]
[1741605934445,7.8042,128.12,128.11,0.04928485]
[1741605934640,2.0102,128.13,128.05,21.67084691]
[1741605935143,2.0102,128.13,128.06,7.8075]
[1741605935545,7.8058,128.1,128.06,7.8075]
[1741605935742,7.8058,128.1,128.05,21.67084691]
[1741605936045,0.05257423,128.09,128.07,19.73740906]
[1741605936848,0.05257423,128.09,128.08,7.8066]
[1741605937546,0.05257423,128.09,128.08,69.8066]
[1741605941353,0.05257423,128.09,128.08,62.0]
[1741605942240,7.85917423,128.09,128.07,0.05126215]
[1741605942640,0.05257423,128.09,128.07,0.05126215]
[1741605942844,0.05257423,128.09,128.08,7.8066]
[1741605944746,1.9864,128.19,128.12,7.804]
[1741605944747,7.8032,128.14,128.12,7.804]
[1741605944952,21.81444691,128.18,128.12,7.804]
[1741605945153,7.8022,128.16,128.1,62.0]
[1741605945347,7.8022,128.16,128.13,7.8035]
[1741605945548,21.81444691,128.18,128.13,7.8035]
[1741605945744,21.81444691,128.18,128.1,63.958]
[1741605945745,21.81444691,128.18,128.11,7.8045]
[1741605945946,21.81444691,128.18,128.1,63.958]
[1741605945947,19.68614691,128.16,128.07,19.68614691]
[1741605946146,19.68614691,128.16,128.07,21.81384691]
[1741605946348,21.81444691,128.18,128.09,19.68614691]
[1741605946959,7.8037,128.13,128.09,19.68614691]
[1741605947157,7.8037,128.13,128.12,0.05068529]
[1741605949159,7.807,128.08,128.05,27.49404691]
[1741605949356,19.74038484,128.14,128.05,27.49404691]
[1741605949357,2.1354,128.12,128.05,19.68614691]
[1741605949546,19.68614691,128.16,128.05,19.68614691]
[1741605949751,7.8046,128.12,128.09,7.8056]
[1741605949959,7.8046,128.12,128.07,19.68614691]
[1741605950159,0.05312069,128.11,128.08,0.05032427]
[1741605950354,7.8037,128.13,128.11,7.8047]
[1741605950754,7.85828301,128.13,128.08,1.9353]
[1741605951053,7.8042,128.12,128.11,0.0496529]
[1741605952252,0.05458301,128.13,128.11,0.0496529]
[1741605952457,7.85848301,128.13,128.11,0.0496529]
[1741605952756,0.05458301,128.13,128.11,0.0496529]
[1741605953052,7.8042,128.12,128.11,0.0496529]
[1741605953259,0.05458301,128.13,128.11,0.0496529]
[1741605953655,7.85868301,128.13,128.11,0.0496529]
[1741605953960,0.05458301,128.13,128.11,0.0496529]
[1741605954347,7.8042,128.12,128.11,0.0496529]
[1741605956873,7.85878301,128.13,128.11,0.0496529]
[1741605957062,0.05458301,128.13,128.12,7.8042]
[1741605959561,2.1354,128.19,128.11,19.73579981]
[1741605959756,2.1354,128.19,128.13,19.68614691]
[1741605959956,7.8006,128.18,128.13,19.68614691]
[1741605960156,2.1354,128.19,128.11,19.68614691]
[1741605960362,7.8022,128.16,128.13,7.8032]
[1741605960663,7.86070769,128.16,128.14,0.04953774]
[1741605961167,7.8024,128.15,128.14,0.04953774]
[1741605963053,0.05850769,128.16,128.14,0.04953774]
[1741605963564,0.05850769,128.16,128.15,7.8024]
[1741605964359,0.01157078,128.16,128.15,7.8024]
[1741605964563,0.01157078,128.16,128.15,9.7403]
[1741605967765,81.27741741,128.23,128.2,7.7993]
[1741605967962,7.7978,128.23,128.2,7.7993]
[1741605968160,7.7985,128.22,128.19,7.7997]
[1741605968759,0.05145543,128.22,128.2,7.799]
[1741605968964,0.05145543,128.22,128.19,0.05498367]
[1741605969159,0.05145543,128.22,128.2,19.68614691]
[1741605969365,0.05145543,128.22,128.21,7.7987]
[1741605970471,47.4168816,128.3,128.24,7.7969]
[1741605970660,47.4168816,128.3,128.24,27.48304691]
[1741605971068,47.4168816,128.3,128.25,7.7962]
[1741605971260,47.4168816,128.3,128.24,19.68614691]
[1741605971567,0.05273537,128.29,128.26,0.05994666]
[1741605972469,0.05273537,128.29,128.26,19.74609357]
[1741605972666,0.05273537,128.29,128.27,2.0824]
[1741605973366,0.05273537,128.29,128.28,19.68614691]
[1741605974471,0.05273537,128.29,128.28,27.48064691]
[1741605975569,0.05273537,128.29,128.27,2.0824]
[1741605976574,7.84703537,128.29,128.27,2.0824]
[1741605976874,0.05273537,128.29,128.27,2.0824]
[1741605977373,0.05273537,128.29,128.28,19.68614691]
[1741605977978,0.05273537,128.29,128.28,27.48064691]
[1741605978475,0.05273537,128.29,128.28,19.68614691]
[1741605979280,0.05273537,128.29,128.28,89.48064691]
[1741605979686,4.0719,128.37,128.31,7.7926]
[1741605980070,4.0719,128.37,128.3,19.68614691]
[1741605980572,7.7918,128.33,128.3,19.68614691]
[1741605980981,7.842276,128.33,128.3,19.74096588]
[1741605981182,0.050476,128.33,128.3,19.74096588]
[1741605981872,7.842276,128.33,128.3,19.74096588]
[1741605982272,0.050476,128.33,128.3,19.74096588]
[1741605982475,7.7921,128.32,128.3,19.74096588]
[1741605982880,7.7921,128.32,128.3,0.05481897]
[1741605983180,0.050476,128.33,128.3,19.74096588]
[1741605983681,7.842376,128.33,128.3,19.74096588]
[1741605983879,0.050476,128.33,128.3,19.74096588]
[1741605984180,0.050476,128.33,128.31,7.7924]
[1741605984478,0.050476,128.33,128.3,81.74096588]
[1741605984680,0.050476,128.33,128.3,0.05481897]
[1741605984884,7.7923,128.32,128.3,0.05481897]
[1741605985374,0.050476,128.33,128.3,0.05481897]
[1741605986280,7.842476,128.33,128.3,7.84791897]
[1741605986783,7.842476,128.33,128.3,0.05481897]
[1741605986980,0.050476,128.33,128.3,19.74096588]